Cogmind - Beta 16.1 @@@ ROGUE MODE // 2026.04.02 @ 16:23:32 Player: Dosh Result: Destroyed by VY-L4G(R) with Subdweller Beam Cannon Performance ------------- Evolutions (0) 0 Regions Visited (2) 400 Robots Destroyed (16) 80 Value Destroyed (374) 374 Prototype IDs (0) 0 Alien Tech Used (0) 0 Bonus (0) 0 TOTAL SCORE: 854 Bonus ------- None Cogmind --------- Core Integrity 0/250 Matter 300/300 Energy 175/200 System Corruption 0% Temperature Warm (197) Movement Treading (250) Ox1 Location -10/Subcaves Parts ------- > --- POWER (1) -------- Subdweller Power Source > --- PROPULSION (2) --- Light Treads Spiked Treads > --- UTILITY (2) ------ Disposable Heat Sink Large Storage Unit > --- WEAPON (2) ------- Subdweller Beam Cannon Subdweller Beam Cannon > --- INVENTORY (15) --- Subdweller Power Source Light Treads Light Treads Light Treads Makeshift System Shield Riot Gun Assault Rifle Assault Rifle Assault Rifle Subdweller Machine Gun Multitool Peak State ------------ > --- POWER ------------ Subdweller Power Source > --- PROPULSION ------- Light Treads Spiked Treads > --- UTILITY ---------- Disposable Heat Sink Large Storage Unit > --- WEAPON ----------- Subdweller Beam Cannon Subdweller Beam Cannon > --- INVENTORY -------- Subdweller Power Source Light Treads Light Treads Light Treads Makeshift System Shield Riot Gun Assault Rifle Assault Rifle Assault Rifle Subdweller Machine Gun Multitool [Rating: 13] Favorites ----------- Power Light Ion Engine Engine Light Ion Engine Propulsion Light Treads Treads Light Treads Utility Large Storage Unit Device Structural Scanner Storage Large Storage Unit Weapon Assault Rifle Energy Cannon Subdweller Beam Cannon Ballistic Gun Assault Rifle Launcher Grenade Launcher Build | -11 -10 -10 ------- Run | Yrd Mat Sub Slots Evolved . | . . . Power . | . . . Propulsion . | . . . Utility . | . . . Weapon . | . . . Parts Attached 17 | 5 5 7 Power 4 | 1 1 2 Engine 4 | 1 1 2 Core . | . . . Reactor . | . . . Propulsion 4 | 2 . 2 Treads 4 | 2 . 2 Leg . | . . . Wheel . | . . . Hover . | . . . Flight . | . . . Utility 3 | . 2 1 Device 2 | . 1 1 Storage 1 | . 1 . Processor . | . . . Hackware . | . . . Protection . | . . . Artifact . | . . . Weapon 6 | 2 2 2 Energy Gun . | . . . Energy Cannon 2 | . . 2 Ballistic Gun 3 | 2 1 . Ballistic Cannon . | . . . Launcher 1 | . 1 . Special Weapon . | . . . Impact Weapon . | . . . Slashing Weapon . | . . . Piercing Weapon . | . . . Special Melee Weapon . | . . . Unidentified Prototypes . | . . . Parts Lost 6 | . 3 3 Power 2 | . 1 1 Propulsion 1 | . 1 . Utility 1 | . . 1 Weapon 2 | . 1 1 Highest Loss Streak 2 | . 2 2 To Critical Strikes . | . . . Average Backups 4 | . 2 5 Power . | . . . Propulsion 1 | . . 2 Utility . | . . . Weapon 1 | . 1 2 Tool/Special . | . . . Unused Backups 7 | . . 7 Power . | . . . Propulsion 2 | . . 2 Utility 1 | . . 1 Weapon 3 | . . 3 Tool/Special 1 | . . 1 Average Slot Usage (%) 85 | . 84 86 Engine 13 | . 13 12 Treads 23 | . 23 22 Device 6 | . 4 8 Storage 13 | . 13 14 Energy Cannon 4 | . . 8 Ballistic Gun 23 | . 27 19 Peak Build Rating 13 | 5 7 13 Average Rating 6 | 4 5 7 On Entrance 3 | . 5 6 Avg Prop Armor Cover (%) . | . . . Naked Turns . | . . . Heaviest Build 42 | 7 28 42 Greatest Support 40 | 40 40 40 Greatest Overweight (x) 1 | . 1 1 Average Overweight (x) . | . . . Largest Inventory Capacity 15 | 5 15 15 Average Capacity 14 | 5 14 15 Most Carried 11 | 1 5 11 Average Carried 4 | . 2 5 Final Capacity 15 | 5 15 15 Final Carried 11 | 1 5 11 Class Distribution -------------------- 100% | Mutant Dominant Class ---------------- Mutant | -10/Materials Mutant | -10/Subcaves Resources | -11 -10 -10 ----------- Run | Yrd Mat Sub Matter Collected 614 | 202 140 272 Remotely . | . . . Salvage Created 417 | . 277 140 Parts 29 | . 20 9 Haulers Intercepted . | . . . Recyclers Shooed . | . . . Parts Field Recycled . | . . . Retrieved Matter . | . . . Parts Self-Destructed 4 | . . 4 Prevented . | . . . Parts Restored . | . . . Kills | -11 -10 -10 ------- Run | Yrd Mat Sub Combat Hostiles Destroyed 15 | . 11 4 Guns 12 | . 10 2 Cannons 2 | . . 2 AOE 1 | . 1 . Classes Destroyed 4 | . 3 1 Worker 1 | . 1 . Swarmer 7 | . 6 1 Grunt 5 | . 5 . Subdweller 3 | . . 3 Best Kill Streak 7 | . 7 1 Combat Bots Only 6 | . 6 1 Max Kills in Single Turn 2 | . 2 1 Gunslinging . | . . . Exploded 1 | . 1 . Melee . | . . . Uniques/NPCs Destroyed . | . . . Combat | -11 -10 -10 -------- Run | Yrd Mat Sub Hostile Shots Fired 88 | . 67 21 Missed 16 | . 11 5 Hits 72 | . 56 16 Projectile 72 | . 56 16 Critical Strikes 2 | . . 2 Damage Taken 1024 | . 637 387 Core 259 | . 116 143 Absorbed by Shields . | . . . Core Remaining (%) 100 | 100 . . Volleys Fired 46 | . 28 18 Largest 2 | . 2 2 Hottest 160 | . 50 160 Shots Fired 92 | . 56 36 Gun 69 | . 49 20 Cannon 16 | . . 16 Launcher 7 | . 7 . Special . | . . . Kinetic 69 | . 49 20 Thermal 16 | . . 16 Explosive 7 | . 7 . Electromagnetic . | . . . Robot Hit Streak 15 | . 10 15 Robot Miss Streak 2 | . 2 2 Penetration Max . | . . . Secondary Targets 4 | . 4 . Max Gunslinging Chain 1 | . 1 . Shots Hit Robots 58 | . 41 17 Core Hits 24 | . 18 6 Critical Kills . | . . . Critical Parts Destroyed 1 | . 1 . Critical Strikes 1 | . 1 . Destroy 1 | . 1 . Melee Attacks . | . . . Impact . | . . . Slashing . | . . . Piercing . | . . . Sneak Attacks . | . . . Combat Hostiles . | . . . Follow-up Attacks . | . . . Damage Inflicted 1110 | . 771 339 Guns 583 | . 469 114 Cannons 225 | . . 225 Explosions 289 | . 289 . Melee . | . . . Ramming 13 | . 13 . Kinetic 583 | . 469 114 Thermal 225 | . . 225 Explosive 289 | . 289 . Electromagnetic . | . . . Impact . | . . . Slashing . | . . . Piercing . | . . . Highest Corruption . | . . . Average Corruption . | . . . Corruption Purged . | . . . Corruption Blocked . | . . . Overload Shots . | . . . Overflow Damage 3 | . 3 . Projectiles . | . . . Explosions 3 | . 3 . Melee . | . . . Knockbacks . | . . . Impact . | . . . Kinetic . | . . . Secondary . | . . . Self-Inflicted Damage 72 | . 72 . Shots 5 | . 5 . Rammed 5 | . 5 . Targets Rammed 5 | . 5 . Kicked . | . . . Crushed . | . . . Highest Temperature 290 | . 2 290 Average Temperature 43 | . 2 78 Received Heat Transfer 552 | . 186 366 Siege Activations . | . . . Martial Activations . | . . . Shielding Activations . | . . . Robots Disrupted . | . . . Combat Hostiles . | . . . Robots Corrupted . | . . . Combat Hostiles . | . . . Parts Fried . | . . . Impact Corruptions . | . . . Robots Melted . | . . . Combat Hostiles . | . . . Parts Melted . | . . . Heat Transferred 296 | . . 296 Parts Sabotaged . | . . . Parts Stolen . | . . . Parts Stripped . | . . . Power Chain Reactions . | . . . Alert | -11 -10 -10 ------- Run | Yrd Mat Sub Maximum Alert Level 1 | . 1 . Low Security (%) 97 | 100 97 . Level 1 2 | . 2 . Level 2 . | . . . Level 3 . | . . . Level 4 . | . . . Level 5 . | . . . High Security . | . . . Max Security . | . . . Peak Influence 209 | . 209 . Initial . | . . . Average 65 | . 71 . Influence Increases 338 | . 308 30 Destroy 0b10 Robot/C 240 | . 220 20 Destroy 0b10 Robot/NC 5 | . 5 . Destroy Leader 50 | . 40 10 Successful Hack 5 | . 5 . Destroy Structure 38 | . 38 . Influence Decreases 338 | . 187 151 Entered New Map 59 | . . 59 Time Decay 249 | . 157 92 Lost Part 30 | . 30 . Squads Dispatched 1 | . 1 . Investigation . | . . . Extermination . | . . . Reinforcement 1 | . 1 . Assault . | . . . Garrison . | . . . Intercept . | . . . Searches Triggered . | . . . Construction Impeded . | . . . Haulers Reinforced . | . . . Active Scanning Responses . | . . . Cargo Convoy Interrupts . | . . . Stealth | -11 -10 -10 --------- Run | Yrd Mat Sub Distress Signals 1 | . 1 . Communications Jammed . | . . . Distress Signals . | . . . Times Spotted 19 | . 13 6 Peak Tracking Total 6 | . 6 1 Tactical Retreats . | . . . Traps | -11 -10 -10 ------- Run | Yrd Mat Sub Traps Triggered 1 | . . 1 Indirectly . | . . . Trap Hack Attempts . | . . . Triggered . | . . . Disarmed . | . . . Reprogrammed . | . . . Reused . | . . . Traps Extracted . | . . . Installed . | . . . Triggered . | . . . Machines | -11 -10 -10 ---------- Run | Yrd Mat Sub Machines Disabled . | . . . Max in Single Turn . | . . . Machines Repaired . | . . . Machines Dismantled . | . . . Machines Sabotaged . | . . . Overloaded Fab Kills . | . . . Hacking | -11 -10 -10 --------- Run | Yrd Mat Sub Machines Accessed 3 | . 3 . Terminals 3 | . 3 . Fabricators . | . . . Repair Stations . | . . . Recycling Units . | . . . Scanalyzers . | . . . Garrison Access . | . . . Total Hacks 6 | . 6 . Successful 3 | . 3 . Failed 3 | . 3 . Catastrophic 2 | . 2 . Database Lockouts . | . . . Manual 6 | . 6 . Terminals 6 | . 6 . Fabricators . | . . . Repair Stations . | . . . Recycling Units . | . . . Scanalyzers . | . . . Garrison Access . | . . . Terminal Hacks 1 | . 1 . Robot Schematic 1 | . 1 . Fabricator Hacks . | . . . Repair Station Hacks . | . . . Recycling Unit Hacks . | . . . Scanalyzer . | . . . Garrison Access Hacks . | . . . Unauthorized Hacks 2 | . 2 . Terminals 2 | . 2 . Botnet 1 | . 1 . Skim 1 | . 1 . Fabricators . | . . . Repair Stations . | . . . Recycling Units . | . . . Scanalyzers . | . . . Garrison Access . | . . . Data Cores Recovered . | . . . Used . | . . . Hacking Detections 3 | . 3 . Full Trace Events . | . . . Feedback Events . | . . . Feedback Blocked . | . . . Robot Schematics Acquired 1 | . 1 . Robots Built . | . . . Authchips . | . . . Time . | . . . Total Robot Build Rating . | . . . Part Schematics Acquired . | . . . Parts Built . | . . . Authchips . | . . . Time . | . . . Total Part Build Rating . | . . . Part Studies Acquired . | . . . Parts Repaired . | . . . Time . | . . . Parts Recycled . | . . . Recycled Matter . | . . . Retrieved Matter . | . . . Retrieved Components . | . . . Parts Scanalyzed . | . . . Part Schematics Acquired . | . . . Parts Damaged . | . . . Bothacking | -11 -10 -10 ------------ Run | Yrd Mat Sub Used RIF Installer . | . . . Robots Hacked . | . . . Non-combat . | . . . Combat . | . . . Robot Hacks Applied . | . . . Relay Couplers Released . | . . . Fabnet Peak Effective % . | . . . Robots Rewired . | . . . Allies Hacked . | . . . Hacks Repelled . | . . . Allies | -11 -10 -10 -------- Run | Yrd Mat Sub Total Allies . | . . . Largest Group . | . . . Highest-Rated Group . | . . . Highest-Rated Ally . | . . . Total Orders . | . . . Ally Attacks . | . . . Total Damage . | . . . Kills . | . . . Allies Corrupted . | . . . Allies Melted . | . . . Intel | -11 -10 -10 ------- Run | Yrd Mat Sub Active Infowar (turns) 693 | . 244 449 Structural 693 | . 244 449 Robot Analysis Total . | . . . Derelict Logs Recovered 1 | . . 1 Drone Launches . | . . . Drone Recoveries . | . . . Exploration | -11 -10 -10 ------------- Run | Yrd Mat Sub Turns Passed 1667 | 70 769 828 Spaces Moved 711 | 42 280 389 Core 4 | 4 . . Treads 707 | 38 280 389 Legs . | . . . Wheels . | . . . Hover . | . . . Flight . | . . . Fastest Speed 50 | 50 160 160 Average Speed 180 | 149 176 187 Slowest Speed 250 | 160 240 250 Overloaded Moves . | . . . Propulsion Burnouts . | . . . Robots Hopped . | . . . Potential Cave-ins . | . . . Cave-ins Triggered . | . . . Exploration Rate (%) 26 | 4 51 23 Regions Visited 2 Branch Regions 1 Pre-discovered Areas 1 | . . 1 Known Exits Taken . | . . . Unknown Exits Taken 2 | 1 1 . Scrap Searched 12 | . . 12 Spaces Dug . | . . . Terrain Destroyed 42 | . 41 1 Melee . | . . . Projectile 1 | . . 1 AOE 41 | . 41 . Terrain Rammed . | . . . Walls Destroyed . | . . . Machines Disabled . | . . . Actions | -11 -10 -10 --------- Run | Yrd Mat Sub Total 992 | 47 496 449 Wait 201 | . 173 28 Move 710 | 41 280 389 Hop . | . . . Pick Up 13 | 1 6 6 Fast Attach 9 | 5 2 2 Attach 4 | . 2 2 Detach . | . . . Swap 5 | . 1 4 Drop . | . . . Fire 46 | . 28 18 Melee . | . . . Ram . | . . . Kick . | . . . Crush 4 | . 4 . Escape Stasis . | . . . Rewire . | . . . Trap . | . . . Miscellaneous . | . . . Route ------- -11/Scrapyard -10/Materials (discovered 3 exits: [*Mat] / [*Min] / [*Sub]) -10/Subcaves (discovered 1 exit: [*Scr]) History --------- Turn | Location | Event 10 | -11/Scrapyard | Discovered new exit (range 15) 71 | -11/Scrapyard | Entered Materials 309 | -10/Materials | Build established: Mutant 532 | -10/Materials | Discovered new exit (range 16) 755 | -10/Materials | Discovered new exit (range 15) 789 | -10/Materials | Discovered new exit (range 5) 840 | -10/Materials | Entered Subcaves 841 | -10/Subcaves | Approached by a straggling Scientist 979 | -10/Subcaves | Scientist uncovered a shortcut to Scraptown 1070 | -10/Subcaves | A swath of the cavern ceiling suddenly collapsed 1133 | -10/Subcaves | Core integrity fell below 50% 1159 | -10/Subcaves | Learned location of Storage (-7) 1495 | -10/Subcaves | Disturbed a concealed Subdweller 1535 | -10/Subcaves | Shifting Twisted Machinery released Battle Rifle 1572 | -10/Subcaves | Shifting Twisted Machinery released Sub. Beam Cannon 1609 | -10/Subcaves | Core integrity fell below 20% 1668 | -10/Subcaves | Destroyed by VY-L4G(R) with Subdweller Beam Cannon Last Messages --------------- 01500_ Found 70 Matter. 01501_ Acquired 13 matter. 01504_ Searching scrap... 01504_ Found Sub. Beam Cannon. 01504_ Found 36 Matter. 01507_ Searching scrap... 01507_ Found Sub. Monowheel. 01507_ Found Sub. Power Source. 01507_ Found 68 Matter. 01511_ Acquired 10 matter. 01516_ Acquired Sub. Machine Gun. 01524_ Acquired Multitool. Battle Rifle falls loose from the Twisted Machinery. Sub. Beam Cannon falls loose from the Twisted Machinery. 01582_ Acquired Sub. Beam Cannon. 01609_ QZ-6E3(R) destroyed. 01612_ Acquired 16 matter. 01624_ Acquired Disposable Heat Sink. 01628_ Acquired 10 matter. 01664_ Critical hit (Meltdown: +270). Map ----- +----------------------------------------------------+ | | | | | | | | | | | ?????????????????????????????????????????????????? | | ?????????????????????????????????????????????????? | | ?????????????????????????????????????????????????? | | ?????????????????????????????????????????????????? | | ?????????????????????????????????????????????????? | | ?????????????????????????????????????????????????? | | ?????????????????????????????????????????????????? | | ?????????????????????????????????????????????????? | | ?????????????????????????????????????????????????? | | ?????????????????????????????????????????????????? | | ?????????????????????????????????????????????????? | | ?????????????????????????????????????????????????? | | ?????????????????????????????????????????????????? | | ?????????????????????????????????????????????????? | | ???????#########?????#####???????????????????????? | | ??????##"" ## ###??## ##??????????????????????? | | ?????## "" ####" ##?????????????????????? | | ????## "" #?# "" ##????????????????????? | | ##### " " ###" "" ##???????????????????? | | ##"# """ "" ## "" ##??????????????????? | | " """"""" ## @ R "#??????????????????? | | """"""" """ " &#= ##""" "#??????????????????? | | # #""""###"""""""&%&] ####"" """ ????????????????? | | ### #?##"##""""#"## #?##" """" ???????????????? | | #?#### #??###########?#???##"""""????????????????? | | ??????##????????????????????#""""????????????????? | | ?????????????????????????????"""?????????????????? | | ?????????????????????????????#???????????????????? | | ?????????????????????????????????????????????????? | | ?????????????????????????????????????????????????? | | ?????????????????????????????????????????????????? | | ?????????????????????????????????????????????????? | | ?????????????????????????????????????????????????? | | ?????????????????????????????????????????????????? | | ?????????????????????????????????????????????????? | | ?????????????????????????????????????????????????? | | ?????????????????????????????????????????????????? | | ?????????????????????????????????????????????????? | | ?????????????????????????????????????????????????? | | ?????????????????????????????????????????????????? | | ?????????????????????????????????????????????????? | | ?????????????????????????????????????????????????? | | ?????????????????????????????????????????????????? | | ?????????????????????????????????????????????????? | | ?????????????????????????????????????????????????? | +----------------------------------------------------+ Best States ------------- Heat Dissipation 25 Coolant Potential 50 Energy Generation 15 Energy Capacity 200 Matter Stores 300 Matter Capacity 300 Sight Range 16 Terrain Scan Density 10 Evasion (%) 40 Recoil Reduction 2 Item Schematics ----------------- None Robot Schematics ------------------ M-13 Machinist | -10/Materials | Hacked Fabricated ------------ Nothing Repaired ---------- Nothing Studied --------- None Alien Tech Used ----------------- None Achievements -------------- Nice Directions, Buddy Challenges ------------ None Game ------ Seed SuperdenseMeleeCutter Manual? 0 Play Time 00:07:47 Cumulative 825.9 hours Start 2026.04.02 @ 16:18:05 End 2026.04.02 @ 16:23:32 Sessions 1 Manual Loads 0 Difficulty Rogue Special Mode None Game No. 413 Rogue 413 Adventurer 0 Explorer 0 Win Type - Total 70 Types 45/5/6/4/1/1/3/3/1/1 Lore% 92 Gallery% 82 Achievement% 69 Wizard Run 0 Options --------- Layout 0 ASCII 0 Keyboard 1 Movement Numpad Keybinds 0 Fullscreen 2 Font 18/SmallcapsGlow Map View 76x50 Zoom Use 0% Tactical HUD 1 Map Filters NONE Filters NONE Steam 1 RUN: 58c01721-f5e0-428d-9d5e-151df2134b5e